[Event "Titled Tuesday Blitz May 31 Late 2022"]
[White "Richter, Nils"]
[Black "Leiva, Gianmarco"]
[WhiteFideId "12990809"]
[BlackFideId "3804399"]
[WhiteElo "2243"]
[BlackElo "2323"]
[Result "0-1"]
[Round "08"]
[TimeControl "180+1"]
[Date "2022.06.01"]
[WhiteClock "0:00:02"]
[BlackClock "0:00:14"]

1. Nf3 {[%clk 0:03:00]}  Nf6 {[%clk 0:02:59]} 2. b3 {[%clk 0:03:00]}  d5 {[%clk 0:02:58]} 3. Bb2 {[%clk 0:03:01]}  Bg4 {[%clk 0:02:58]} 4. Ne5 {[%clk 0:03:01]}  Nbd7 {[%clk 0:02:57]} 5. Nxg4 {[%clk 0:03:00]}  Nxg4 {[%clk 0:02:57]} 6. e3 {[%clk 0:02:59]}  Ngf6 {[%clk 0:02:56]} 7. c4 {[%clk 0:02:59]}  c6 {[%clk 0:02:49]} 8. Nc3 {[%clk 0:02:59]}  e5 {[%clk 0:02:48]} 9. d4 {[%clk 0:02:44]}  e4 {[%clk 0:02:36]} 10. Be2 {[%clk 0:02:43]}  Bd6 {[%clk 0:02:36]} 11. Rc1 {[%clk 0:02:40]}  O-O {[%clk 0:02:36]} 12. cxd5 {[%clk 0:02:38]}  cxd5 {[%clk 0:02:36]} 13. Nb5 {[%clk 0:02:34]}  Bb4+ {[%clk 0:02:24]} 14. Bc3 {[%clk 0:02:32]}  Be7 {[%clk 0:02:16]} 15. Bd2 {[%clk 0:02:18]}  a6 {[%clk 0:02:17]} 16. Nc3 {[%clk 0:02:07]}  Ba3 {[%clk 0:02:12]} 17. Rc2 {[%clk 0:02:05]}  b5 {[%clk 0:02:13]} 18. O-O {[%clk 0:02:04]}  Re8 {[%clk 0:02:04]} 19. f3 {[%clk 0:02:03]}  Rc8 {[%clk 0:01:33]} 20. fxe4 {[%clk 0:02:01]}  dxe4 {[%clk 0:01:34]} 21. Be1 {[%clk 0:01:56]}  Qc7 {[%clk 0:01:27]} 22. Bg3 {[%clk 0:01:53]}  Qa5 {[%clk 0:01:05]} 23. Nb1 {[%clk 0:01:41]}  Nd5 {[%clk 0:01:05]} 24. Rxc8 {[%clk 0:01:34]}  Rxc8 {[%clk 0:01:06]} 25. Bf2 {[%clk 0:01:19]}  Rc1 {[%clk 0:00:44]} 26. Qd2 {[%clk 0:01:19]}  Qxd2 {[%clk 0:00:41]} 27. Nxd2 {[%clk 0:01:19]}  f5 {[%clk 0:00:40]} 28. g4 {[%clk 0:00:54]}  Rc2 {[%clk 0:00:29]} 29. Nb1 {[%clk 0:00:50]}  Rxe2 {[%clk 0:00:28]} 30. Nxa3 {[%clk 0:00:50]}  fxg4 {[%clk 0:00:20]} 31. Rc1 {[%clk 0:00:50]}  Rxa2 {[%clk 0:00:18]} 32. Rc8+ {[%clk 0:00:49]}  Kf7 {[%clk 0:00:18]} 33. Nc2 {[%clk 0:00:50]}  g5 {[%clk 0:00:14]} 34. Rd8 {[%clk 0:00:41]}  Ke7 {[%clk 0:00:13]} 35. Rc8 {[%clk 0:00:39]}  Rb2 {[%clk 0:00:13]} 36. Rc6 {[%clk 0:00:34]}  Rb1+ {[%clk 0:00:12]} 37. Kg2 {[%clk 0:00:33]}  Rc1 {[%clk 0:00:13]} 38. Kg3 {[%clk 0:00:24]}  h5 {[%clk 0:00:13]} 39. Nb4 {[%clk 0:00:16]}  Rxc6 {[%clk 0:00:09]} 40. Nxc6+ {[%clk 0:00:17]}  Kd6 {[%clk 0:00:07]} 41. Na5 {[%clk 0:00:15]}  Kc7 {[%clk 0:00:06]} 42. Be1 {[%clk 0:00:12]}  N7f6 {[%clk 0:00:05]} 43. Kf2 {[%clk 0:00:11]}  Kb6 {[%clk 0:00:05]} 44. b4 {[%clk 0:00:11]}  h4 {[%clk 0:00:04]} 45. Nb3 {[%clk 0:00:11]}  Kc6 {[%clk 0:00:04]} 46. Nc5 {[%clk 0:00:11]}  Kb6 {[%clk 0:00:04]} 47. Ne6 {[%clk 0:00:10]}  g3+ {[%clk 0:00:05]} 48. hxg3 {[%clk 0:00:10]}  h3 {[%clk 0:00:05]} 49. Nxg5 {[%clk 0:00:10]}  Ng4+ {[%clk 0:00:06]} 50. Kg1 {[%clk 0:00:09]}  h2+ {[%clk 0:00:06]} 51. Kh1 {[%clk 0:00:08]}  Ndxe3 {[%clk 0:00:07]} 52. Nxe4 {[%clk 0:00:08]}  Nc2 {[%clk 0:00:07]} 53. Bd2 {[%clk 0:00:07]}  Nxd4 {[%clk 0:00:07]} 54. Nf6 {[%clk 0:00:04]}  Nxf6 {[%clk 0:00:07]} 55. Be3 {[%clk 0:00:05]}  Ng4 {[%clk 0:00:08]} 56. Bxd4+ {[%clk 0:00:06]}  Kc6 {[%clk 0:00:09]} 57. Kg2 {[%clk 0:00:06]}  Kd5 {[%clk 0:00:09]} 58. Bb2 {[%clk 0:00:04]}  Kc4 {[%clk 0:00:09]} 59. Ba3 {[%clk 0:00:05]}  Kb3 {[%clk 0:00:10]} 60. Bc1 {[%clk 0:00:05]}  Kxb4 {[%clk 0:00:10]} 61. Bd2+ {[%clk 0:00:05]}  Kc4 {[%clk 0:00:11]} 62. Bf4 {[%clk 0:00:02]}  b4 {[%clk 0:00:11]} 63. Bg5 {[%clk 0:00:01]}  a5 {[%clk 0:00:12]} 64. Bc1 {[%clk 0:00:01]}  a4 {[%clk 0:00:12]} 65. Kh3 {[%clk 0:00:02]}  a3 {[%clk 0:00:13]} 66. Kxg4 {[%clk 0:00:02]}  h1=Q {[%clk 0:00:13]} 67. Bf4 {[%clk 0:00:02]}  b3 {[%clk 0:00:14]} 0-1


[Site "https://www.chess.com"]

[Event "Titled Tuesday Blitz May 31 Late 2022"]
[White "Riehle, Marco"]
[Black "Drygalov, Andrey"]
[WhiteFideId "12904392"]
[BlackFideId "24171735"]
[WhiteElo "2462"]
[BlackElo "2540"]
[Result "0-1"]
[Round "08"]
[TimeControl "180+1"]
[Date "2022.05.31"]
[WhiteClock "0:01:09"]
[BlackClock "0:00:49"]

1. e4 {[%clk 0:03:00]}  c5 {[%clk 0:02:59]} 2. a3 {[%clk 0:03:00]}  Nc6 {[%clk 0:02:57]} 3. b4 {[%clk 0:03:00]}  e5 {[%clk 0:02:57]} 4. b5 {[%clk 0:03:00]}  Nd4 {[%clk 0:02:58]} 5. c3 {[%clk 0:03:01]}  Ne6 {[%clk 0:02:54]} 6. Nf3 {[%clk 0:03:00]}  d6 {[%clk 0:02:52]} 7. d4 {[%clk 0:03:00]}  cxd4 {[%clk 0:02:52]} 8. cxd4 {[%clk 0:03:01]}  Nf6 {[%clk 0:02:52]} 9. dxe5 {[%clk 0:03:00]}  Nxe4 {[%clk 0:02:49]} 10. Bd3 {[%clk 0:03:00]}  N4c5 {[%clk 0:02:47]} 11. Be2 {[%clk 0:02:57]}  Be7 {[%clk 0:02:42]} 12. O-O {[%clk 0:02:55]}  dxe5 {[%clk 0:02:36]} 13. Nxe5 {[%clk 0:02:51]}  Qxd1 {[%clk 0:02:34]} 14. Rxd1 {[%clk 0:02:52]}  Bf6 {[%clk 0:02:27]} 15. f4 {[%clk 0:02:52]}  Nb3 {[%clk 0:02:24]} 16. Ra2 {[%clk 0:02:49]}  Nxc1 {[%clk 0:02:24]} 17. Rxc1 {[%clk 0:02:47]}  Nxf4 {[%clk 0:02:24]} 18. Nc4 {[%clk 0:02:41]}  O-O {[%clk 0:02:23]} 19. Bf3 {[%clk 0:02:40]}  Rb8 {[%clk 0:02:17]} 20. Nbd2 {[%clk 0:02:18]}  Bd4+ {[%clk 0:02:15]} 21. Kf1 {[%clk 0:02:18]}  Be6 {[%clk 0:02:10]} 22. Rac2 {[%clk 0:02:18]}  b6 {[%clk 0:02:05]} 23. Be4 {[%clk 0:01:59]}  Rfe8 {[%clk 0:01:53]} 24. Bc6 {[%clk 0:01:56]}  Red8 {[%clk 0:01:51]} 25. Nf3 {[%clk 0:01:54]}  Bc5 {[%clk 0:01:49]} 26. a4 {[%clk 0:01:51]}  Bf5 {[%clk 0:01:49]} 27. Rb2 {[%clk 0:01:41]}  Nd3 {[%clk 0:01:48]} 28. Rbb1 {[%clk 0:01:39]}  Nxc1 {[%clk 0:01:38]} 29. Rxc1 {[%clk 0:01:40]}  f6 {[%clk 0:01:36]} 30. h3 {[%clk 0:01:33]}  Rd3 {[%clk 0:01:32]} 31. a5 {[%clk 0:01:31]}  Rbd8 {[%clk 0:01:31]} 32. a6 {[%clk 0:01:28]}  Rd1+ {[%clk 0:01:18]} 33. Rxd1 {[%clk 0:01:28]}  Rxd1+ {[%clk 0:01:19]} 34. Ke2 {[%clk 0:01:29]}  Rd8 {[%clk 0:01:19]} 35. Nfd2 {[%clk 0:01:23]}  Bd3+ {[%clk 0:01:14]} 36. Kf3 {[%clk 0:01:23]}  Kf7 {[%clk 0:01:11]} 37. g4 {[%clk 0:01:20]}  g6 {[%clk 0:01:11]} 38. h4 {[%clk 0:01:18]}  h5 {[%clk 0:01:09]} 39. g5 {[%clk 0:01:18]}  fxg5 {[%clk 0:01:09]} 40. hxg5 {[%clk 0:01:18]}  Kg7 {[%clk 0:01:06]} 41. Ne5 {[%clk 0:01:16]}  Rf8+ {[%clk 0:00:52]} 42. Kg3 {[%clk 0:01:09]}  Bd6 {[%clk 0:00:51]} 43. Nf3 {[%clk 0:01:09]}  Rxf3+ {[%clk 0:00:49]} 0-1


[Site "https://www.chess.com"]

[Event "Titled Tuesday Blitz May 31 Late 2022"]
[White "Rios Escobar, Adan"]
[Black "Kohler, Aran"]
[WhiteFideId "3403645"]
[BlackFideId "1002856"]
[WhiteElo "2411"]
[BlackElo "2263"]
[Result "1-0"]
[Round "08"]
[TimeControl "180+1"]
[Date "2022.06.01"]
[WhiteClock "0:00:13"]
[BlackClock "0:00:02"]

1. d4 {[%clk 0:03:00]}  d5 {[%clk 0:02:59]} 2. Nf3 {[%clk 0:03:00]}  c6 {[%clk 0:02:59]} 3. c4 {[%clk 0:03:00]}  Nf6 {[%clk 0:02:59]} 4. g3 {[%clk 0:03:01]}  e6 {[%clk 0:03:00]} 5. Bg2 {[%clk 0:03:00]}  dxc4 {[%clk 0:02:59]} 6. Ne5 {[%clk 0:02:50]}  Bb4+ {[%clk 0:02:58]} 7. Bd2 {[%clk 0:02:49]}  Bxd2+ {[%clk 0:02:45]} 8. Qxd2 {[%clk 0:02:48]}  Nbd7 {[%clk 0:02:38]} 9. Nxc4 {[%clk 0:02:47]}  O-O {[%clk 0:02:38]} 10. O-O {[%clk 0:02:46]}  c5 {[%clk 0:02:28]} 11. Rd1 {[%clk 0:02:38]}  cxd4 {[%clk 0:02:26]} 12. Qxd4 {[%clk 0:02:39]}  Qc7 {[%clk 0:02:23]} 13. Nc3 {[%clk 0:02:34]}  a6 {[%clk 0:02:01]} 14. Rac1 {[%clk 0:02:15]}  e5 {[%clk 0:01:53]} 15. Nd5 {[%clk 0:02:04]}  Nxd5 {[%clk 0:01:32]} 16. Qxd5 {[%clk 0:02:01]}  Qb8 {[%clk 0:00:38]} 17. Nd6 {[%clk 0:01:59]}  Nf6 {[%clk 0:00:32]} 18. Qxe5 {[%clk 0:01:55]}  Be6 {[%clk 0:00:29]} 19. Qf4 {[%clk 0:01:23]}  Ra7 {[%clk 0:00:27]} 20. a4 {[%clk 0:01:14]}  b5 {[%clk 0:00:24]} 21. a5 {[%clk 0:01:10]}  Rd7 {[%clk 0:00:21]} 22. Ne4 {[%clk 0:00:55]}  Qxf4 {[%clk 0:00:20]} 23. gxf4 {[%clk 0:00:55]}  Rxd1+ {[%clk 0:00:19]} 24. Rxd1 {[%clk 0:00:54]}  Nd5 {[%clk 0:00:18]} 25. e3 {[%clk 0:00:51]}  Nb4 {[%clk 0:00:12]} 26. Nc5 {[%clk 0:00:48]}  Bc4 {[%clk 0:00:11]} 27. b3 {[%clk 0:00:44]}  Be6 {[%clk 0:00:10]} 28. Nxe6 {[%clk 0:00:43]}  fxe6 {[%clk 0:00:10]} 29. Rd4 {[%clk 0:00:37]}  Nc2 {[%clk 0:00:09]} 30. Rd6 {[%clk 0:00:36]}  Kf7 {[%clk 0:00:08]} 31. Rxa6 {[%clk 0:00:34]}  Rd8 {[%clk 0:00:09]} 32. Bh3 {[%clk 0:00:32]}  Rd1+ {[%clk 0:00:09]} 33. Kg2 {[%clk 0:00:32]}  e5 {[%clk 0:00:07]} 34. fxe5 {[%clk 0:00:28]}  Ne1+ {[%clk 0:00:07]} 35. Kg3 {[%clk 0:00:28]}  Nd3 {[%clk 0:00:07]} 36. e6+ {[%clk 0:00:22]}  Kf6 {[%clk 0:00:08]} 37. Kf3 {[%clk 0:00:18]}  Ne5+ {[%clk 0:00:07]} 38. Ke4 {[%clk 0:00:15]}  Ng6 {[%clk 0:00:04]} 39. f4 {[%clk 0:00:14]}  Rb1 {[%clk 0:00:03]} 40. Rb6 {[%clk 0:00:12]}  Rxb3 {[%clk 0:00:02]} 41. a6 {[%clk 0:00:13]}  Rb4+ {[%clk 0:00:03]} 42. Kf3 {[%clk 0:00:13]}  Ra4 {[%clk 0:00:03]} 43. Bf1 {[%clk 0:00:13]}  b4 {[%clk 0:00:02]} 44. Bc4 {[%clk 0:00:13]} 1-0


[Site "https://www.chess.com"]

[Event "Titled Tuesday Blitz May 31 Late 2022"]
[White "Roman, Rodrigo"]
[Black "Souleidis, Georgios"]
[WhiteFideId "3701220"]
[BlackFideId "4206827"]
[WhiteElo "2001"]
[BlackElo "2401"]
[Result "0-1"]
[Round "08"]
[TimeControl "180+1"]
[Date "2022.06.01"]
[WhiteClock "0:00:07"]
[BlackClock "0:00:20"]

1. e4 {[%clk 0:02:48]}  e5 {[%clk 0:02:59]} 2. Nf3 {[%clk 0:02:47]}  d6 {[%clk 0:02:59]} 3. Bc4 {[%clk 0:02:47]}  Nf6 {[%clk 0:02:58]} 4. d3 {[%clk 0:02:46]}  Be7 {[%clk 0:02:58]} 5. c3 {[%clk 0:02:45]}  O-O {[%clk 0:02:58]} 6. O-O {[%clk 0:02:45]}  c5 {[%clk 0:02:58]} 7. Nbd2 {[%clk 0:02:40]}  Nc6 {[%clk 0:02:59]} 8. a3 {[%clk 0:02:35]}  Be6 {[%clk 0:02:58]} 9. Re1 {[%clk 0:02:33]}  Qd7 {[%clk 0:02:58]} 10. Bxe6 {[%clk 0:02:20]}  fxe6 {[%clk 0:02:53]} 11. Nf1 {[%clk 0:02:17]}  Qe8 {[%clk 0:02:43]} 12. Ng3 {[%clk 0:02:15]}  h6 {[%clk 0:02:20]} 13. Qb3 {[%clk 0:01:53]}  Qd7 {[%clk 0:02:14]} 14. Bd2 {[%clk 0:01:34]}  Kh8 {[%clk 0:02:13]} 15. Rad1 {[%clk 0:01:34]}  b6 {[%clk 0:02:12]} 16. Bc1 {[%clk 0:01:29]}  Nh7 {[%clk 0:02:02]} 17. Qc2 {[%clk 0:01:15]}  Qe8 {[%clk 0:01:53]} 18. Qe2 {[%clk 0:01:01]}  Qg6 {[%clk 0:01:50]} 19. Be3 {[%clk 0:00:55]}  d5 {[%clk 0:01:26]} 20. Rf1 {[%clk 0:00:22]}  d4 {[%clk 0:01:22]} 21. Bc1 {[%clk 0:00:19]}  Rf7 {[%clk 0:01:15]} 22. Kh1 {[%clk 0:00:19]}  Raf8 {[%clk 0:01:15]} 23. Ng1 {[%clk 0:00:19]}  Bg5 {[%clk 0:01:12]} 24. Bxg5 {[%clk 0:00:18]}  Qxg5 {[%clk 0:01:02]} 25. Qd2 {[%clk 0:00:18]}  Qe7 {[%clk 0:00:53]} 26. Nh3 {[%clk 0:00:18]}  g5 {[%clk 0:00:49]} 27. f3 {[%clk 0:00:16]}  Rd8 {[%clk 0:00:42]} 28. Qe2 {[%clk 0:00:16]}  Nf8 {[%clk 0:00:41]} 29. c4 {[%clk 0:00:15]}  Ng6 {[%clk 0:00:41]} 30. Rf2 {[%clk 0:00:12]}  Rg8 {[%clk 0:00:37]} 31. Nf1 {[%clk 0:00:09]}  Nf4 {[%clk 0:00:35]} 32. Nxf4 {[%clk 0:00:09]}  gxf4 {[%clk 0:00:31]} 33. g3 {[%clk 0:00:09]}  Qg5 {[%clk 0:00:26]} 34. h4 {[%clk 0:00:08]}  Qh5 {[%clk 0:00:23]} 35. Rh2 {[%clk 0:00:06]}  fxg3 {[%clk 0:00:22]} 36. Nxg3 {[%clk 0:00:07]}  Rxg3 {[%clk 0:00:20]} 0-1


[Site "https://www.chess.com"]

[Event "Titled Tuesday Blitz May 31 Late 2022"]
[White "Romanchuk, Viktor"]
[Black "Eljanov, Pavel"]
[WhiteFideId "14109271"]
[BlackFideId "14102951"]
[WhiteElo "2242"]
[BlackElo "2601"]
[Result "1/2-1/2"]
[Round "08"]
[TimeControl "180+1"]
[Date "2022.05.31"]
[WhiteClock "0:01:44"]
[BlackClock "0:01:07"]

1. d4 {[%clk 0:03:00]}  Nf6 {[%clk 0:02:59]} 2. c4 {[%clk 0:03:00]}  e6 {[%clk 0:02:59]} 3. Nc3 {[%clk 0:03:00]}  Bb4 {[%clk 0:02:59]} 4. e3 {[%clk 0:03:00]}  O-O {[%clk 0:02:59]} 5. Ne2 {[%clk 0:03:01]}  Re8 {[%clk 0:02:52]} 6. a3 {[%clk 0:03:01]}  Bf8 {[%clk 0:02:52]} 7. Ng3 {[%clk 0:03:01]}  c5 {[%clk 0:02:50]} 8. dxc5 {[%clk 0:02:58]}  a5 {[%clk 0:02:46]} 9. Rb1 {[%clk 0:02:50]}  Bxc5 {[%clk 0:02:44]} 10. b4 {[%clk 0:02:48]}  axb4 {[%clk 0:02:43]} 11. axb4 {[%clk 0:02:49]}  Bf8 {[%clk 0:02:43]} 12. Be2 {[%clk 0:02:49]}  Na6 {[%clk 0:02:37]} 13. c5 {[%clk 0:02:49]}  d6 {[%clk 0:02:31]} 14. cxd6 {[%clk 0:02:45]}  Bxd6 {[%clk 0:02:23]} 15. b5 {[%clk 0:02:44]}  Be5 {[%clk 0:01:47]} 16. Bd2 {[%clk 0:02:26]}  Nc5 {[%clk 0:01:35]} 17. O-O {[%clk 0:02:22]}  b6 {[%clk 0:01:35]} 18. f4 {[%clk 0:02:02]}  Bxc3 {[%clk 0:01:18]} 19. Bxc3 {[%clk 0:02:03]}  Bb7 {[%clk 0:01:18]} 20. Qxd8 {[%clk 0:01:53]}  Rexd8 {[%clk 0:01:16]} 21. Rfd1 {[%clk 0:01:50]}  Rxd1+ {[%clk 0:01:07]} 22. Rxd1 {[%clk 0:01:47]}  Nd5 {[%clk 0:01:07]} 23. Bd4 {[%clk 0:01:44]} 1/2-1/2


[Site "https://www.chess.com"]

[Event "Titled Tuesday Blitz May 31 Late 2022"]
[White "Rychagov, Andrey"]
[Black "Derraugh, Geordie"]
[WhiteFideId "4119932"]
[BlackFideId "2603950"]
[WhiteElo "2500"]
[BlackElo "2116"]
[Result "1-0"]
[Round "08"]
[TimeControl "180+1"]
[Date "2022.05.31"]
[WhiteClock "0:00:45"]
[BlackClock "0:00:07"]

1. d4 {[%clk 0:03:00]}  Nf6 {[%clk 0:03:00]} 2. c4 {[%clk 0:03:00]}  g6 {[%clk 0:02:59]} 3. Nc3 {[%clk 0:03:00]}  d5 {[%clk 0:03:00]} 4. Nf3 {[%clk 0:03:00]}  Bg7 {[%clk 0:03:00]} 5. cxd5 {[%clk 0:02:58]}  Nxd5 {[%clk 0:03:00]} 6. e4 {[%clk 0:02:58]}  Nxc3 {[%clk 0:03:00]} 7. bxc3 {[%clk 0:02:59]}  c5 {[%clk 0:03:01]} 8. Be3 {[%clk 0:02:58]}  O-O {[%clk 0:03:01]} 9. Qd2 {[%clk 0:02:58]}  Nc6 {[%clk 0:03:00]} 10. Rc1 {[%clk 0:02:53]}  cxd4 {[%clk 0:03:00]} 11. cxd4 {[%clk 0:02:52]}  Bg4 {[%clk 0:03:00]} 12. d5 {[%clk 0:02:46]}  Bxf3 {[%clk 0:02:58]} 13. gxf3 {[%clk 0:02:46]}  Ne5 {[%clk 0:02:58]} 14. Be2 {[%clk 0:02:45]}  Qd7 {[%clk 0:02:52]} 15. h4 {[%clk 0:02:17]}  Rfc8 {[%clk 0:02:46]} 16. Rxc8+ {[%clk 0:02:07]}  Rxc8 {[%clk 0:02:45]} 17. Kf1 {[%clk 0:02:07]}  Nc4 {[%clk 0:02:43]} 18. Bxc4 {[%clk 0:02:06]}  Rxc4 {[%clk 0:02:44]} 19. Kg2 {[%clk 0:02:06]}  h5 {[%clk 0:02:32]} 20. Bxa7 {[%clk 0:02:01]}  Qa4 {[%clk 0:02:32]} 21. Be3 {[%clk 0:01:57]}  Rc2 {[%clk 0:02:31]} 22. Qd1 {[%clk 0:01:42]}  Qxa2 {[%clk 0:02:31]} 23. Qb1 {[%clk 0:01:42]}  Qxb1 {[%clk 0:02:06]} 24. Rxb1 {[%clk 0:01:40]}  Rb2 {[%clk 0:02:07]} 25. Rc1 {[%clk 0:01:40]}  Bf6 {[%clk 0:02:04]} 26. f4 {[%clk 0:01:20]}  Bxh4 {[%clk 0:01:50]} 27. Rc8+ {[%clk 0:01:18]}  Kh7 {[%clk 0:01:35]} 28. Bd4 {[%clk 0:01:18]}  Bf6 {[%clk 0:01:35]} 29. e5 {[%clk 0:01:17]}  Re2 {[%clk 0:00:40]} 30. exf6 {[%clk 0:01:10]}  g5 {[%clk 0:00:24]} 31. fxg5 {[%clk 0:01:04]}  exf6 {[%clk 0:00:19]} 32. Bxf6 {[%clk 0:01:03]}  Rd2 {[%clk 0:00:18]} 33. Rc7 {[%clk 0:00:59]}  Kg6 {[%clk 0:00:18]} 34. Rxb7 {[%clk 0:00:52]}  Rxd5 {[%clk 0:00:18]} 35. f4 {[%clk 0:00:51]}  Rd2+ {[%clk 0:00:17]} 36. Kf3 {[%clk 0:00:51]}  Rd1 {[%clk 0:00:16]} 37. Be5 {[%clk 0:00:50]}  Rf1+ {[%clk 0:00:16]} 38. Kg2 {[%clk 0:00:50]}  Re1 {[%clk 0:00:14]} 39. Rb6+ {[%clk 0:00:50]}  Kf5 {[%clk 0:00:09]} 40. Kf3 {[%clk 0:00:46]}  Rf1+ {[%clk 0:00:08]} 41. Ke2 {[%clk 0:00:46]}  Rc1 {[%clk 0:00:07]} 42. Rf6+ {[%clk 0:00:46]}  Kg4 {[%clk 0:00:07]} 43. Rxf7 {[%clk 0:00:47]}  h4 {[%clk 0:00:07]} 44. g6 {[%clk 0:00:47]}  h3 {[%clk 0:00:07]} 45. g7 {[%clk 0:00:47]}  Rc2+ {[%clk 0:00:07]} 46. Kd3 {[%clk 0:00:47]}  Rc8 {[%clk 0:00:07]} 47. Rf8 {[%clk 0:00:45]} 1-0


[Site "https://www.chess.com"]

[Event "Titled Tuesday Blitz May 31 Late 2022"]
[White "Shapiro, David"]
[Black "Moroni, Luca Jr"]
[WhiteFideId "24133523"]
[BlackFideId "865834"]
[WhiteElo "2300"]
[BlackElo "2573"]
[Result "1/2-1/2"]
[Round "08"]
[TimeControl "180+1"]
[Date "2022.05.31"]
[WhiteClock "0:00:05"]
[BlackClock "0:00:03"]

1. d4 {[%clk 0:03:00]}  g6 {[%clk 0:02:59]} 2. e4 {[%clk 0:03:00]}  Bg7 {[%clk 0:02:59]} 3. Nc3 {[%clk 0:03:01]}  d6 {[%clk 0:02:59]} 4. Be3 {[%clk 0:03:01]}  Nf6 {[%clk 0:03:00]} 5. f3 {[%clk 0:03:00]}  O-O {[%clk 0:03:00]} 6. Qd2 {[%clk 0:03:01]}  e5 {[%clk 0:03:00]} 7. Nge2 {[%clk 0:02:53]}  exd4 {[%clk 0:02:59]} 8. Nxd4 {[%clk 0:02:54]}  d5 {[%clk 0:03:00]} 9. O-O-O {[%clk 0:02:29]}  dxe4 {[%clk 0:02:59]} 10. fxe4 {[%clk 0:02:30]}  c6 {[%clk 0:02:50]} 11. Bh6 {[%clk 0:02:20]}  Qe7 {[%clk 0:02:37]} 12. Bxg7 {[%clk 0:01:54]}  Kxg7 {[%clk 0:02:37]} 13. Nf3 {[%clk 0:01:48]}  Nbd7 {[%clk 0:02:27]} 14. Qd4 {[%clk 0:01:42]}  Re8 {[%clk 0:02:27]} 15. Bc4 {[%clk 0:01:06]}  Ne5 {[%clk 0:02:25]} 16. Nxe5 {[%clk 0:01:05]}  Qxe5 {[%clk 0:02:25]} 17. Qxe5 {[%clk 0:00:59]}  Rxe5 {[%clk 0:02:25]} 18. Rd8 {[%clk 0:00:58]}  Re8 {[%clk 0:02:24]} 19. Rxe8 {[%clk 0:00:54]}  Nxe8 {[%clk 0:02:25]} 20. e5 {[%clk 0:00:54]}  Bf5 {[%clk 0:02:19]} 21. Rf1 {[%clk 0:00:51]}  h5 {[%clk 0:02:10]} 22. h3 {[%clk 0:00:46]}  h4 {[%clk 0:01:56]} 23. Bd3 {[%clk 0:00:29]}  Bxd3 {[%clk 0:01:54]} 24. cxd3 {[%clk 0:00:30]}  Rd8 {[%clk 0:01:49]} 25. Kc2 {[%clk 0:00:26]}  Nc7 {[%clk 0:01:44]} 26. Ne4 {[%clk 0:00:26]}  Nb5 {[%clk 0:01:43]} 27. Ng5 {[%clk 0:00:20]}  Nd4+ {[%clk 0:01:39]} 28. Kc3 {[%clk 0:00:21]}  Nf5 {[%clk 0:01:39]} 29. d4 {[%clk 0:00:12]}  c5 {[%clk 0:01:29]} 30. dxc5 {[%clk 0:00:12]}  Rd5 {[%clk 0:01:29]} 31. Ne4 {[%clk 0:00:10]}  Rxe5 {[%clk 0:01:26]} 32. Rf4 {[%clk 0:00:08]}  Ng3 {[%clk 0:01:01]} 33. Nxg3 {[%clk 0:00:07]}  hxg3 {[%clk 0:01:02]} 34. Rf3 {[%clk 0:00:08]}  Rxc5+ {[%clk 0:01:00]} 35. Kb3 {[%clk 0:00:07]}  Rg5 {[%clk 0:01:00]} 36. Kc4 {[%clk 0:00:04]}  f6 {[%clk 0:01:00]} 37. Rd3 {[%clk 0:00:03]}  Kh6 {[%clk 0:00:50]} 38. a4 {[%clk 0:00:04]}  a6 {[%clk 0:00:46]} 39. b4 {[%clk 0:00:04]}  b5+ {[%clk 0:00:45]} 40. axb5 {[%clk 0:00:04]}  axb5+ {[%clk 0:00:46]} 41. Kc3 {[%clk 0:00:05]}  Kh5 {[%clk 0:00:45]} 42. Rd7 {[%clk 0:00:05]}  Re5 {[%clk 0:00:34]} 43. Rd3 {[%clk 0:00:05]}  f5 {[%clk 0:00:15]} 44. Rxg3 {[%clk 0:00:05]}  g5 {[%clk 0:00:15]} 45. Kd4 {[%clk 0:00:04]}  Re4+ {[%clk 0:00:06]} 46. Kc5 {[%clk 0:00:04]}  Kh4 {[%clk 0:00:05]} 47. Rf3 {[%clk 0:00:04]}  f4 {[%clk 0:00:05]} 48. Kxb5 {[%clk 0:00:04]}  Re2 {[%clk 0:00:05]} 49. Kc6 {[%clk 0:00:04]}  Rc2+ {[%clk 0:00:04]} 50. Kd5 {[%clk 0:00:04]}  Rxg2 {[%clk 0:00:05]} 51. b5 {[%clk 0:00:04]}  Rb2 {[%clk 0:00:04]} 52. Kc4 {[%clk 0:00:04]}  Rb1 {[%clk 0:00:01]} 53. Kc5 {[%clk 0:00:04]}  Rc1+ {[%clk 0:00:02]} 54. Kd5 {[%clk 0:00:04]}  Rd1+ {[%clk 0:00:02]} 55. Kc5 {[%clk 0:00:04]}  Rc1+ {[%clk 0:00:03]} 56. Kd5 {[%clk 0:00:05]}  Rb1 {[%clk 0:00:03]} 57. Kc5 {[%clk 0:00:05]}  Rc1+ {[%clk 0:00:03]} 1/2-1/2


[Site "https://www.chess.com"]

[Event "Titled Tuesday Blitz May 31 Late 2022"]
[White "Shuvalova, Polina"]
[Black "Demchenko, Anton"]
[WhiteFideId "24171760"]
[BlackFideId "4160258"]
[WhiteElo "2355"]
[BlackElo "2539"]
[Result "1-0"]
[Round "08"]
[TimeControl "180+1"]
[Date "2022.05.31"]
[WhiteClock "0:00:10"]
[BlackClock "0:00:01"]

1. e4 {[%clk 0:03:00]}  e5 {[%clk 0:03:00]} 2. Nf3 {[%clk 0:03:01]}  Nc6 {[%clk 0:03:00]} 3. Nc3 {[%clk 0:03:01]}  Nf6 {[%clk 0:03:00]} 4. d4 {[%clk 0:03:02]}  exd4 {[%clk 0:03:01]} 5. Nxd4 {[%clk 0:03:02]}  Bb4 {[%clk 0:03:02]} 6. Nxc6 {[%clk 0:03:01]}  bxc6 {[%clk 0:03:03]} 7. Bd3 {[%clk 0:03:01]}  O-O {[%clk 0:03:03]} 8. O-O {[%clk 0:03:01]}  Re8 {[%clk 0:03:04]} 9. Bg5 {[%clk 0:02:56]}  Qe7 {[%clk 0:03:04]} 10. Bh4 {[%clk 0:02:41]}  h6 {[%clk 0:02:45]} 11. h3 {[%clk 0:02:34]}  Qe5 {[%clk 0:01:54]} 12. f4 {[%clk 0:02:11]}  Qh5 {[%clk 0:01:52]} 13. Bxf6 {[%clk 0:01:57]}  Qxd1 {[%clk 0:01:50]} 14. Raxd1 {[%clk 0:01:55]}  gxf6 {[%clk 0:01:51]} 15. Ne2 {[%clk 0:01:55]}  d5 {[%clk 0:01:36]} 16. Ng3 {[%clk 0:01:50]}  Kf8 {[%clk 0:01:27]} 17. exd5 {[%clk 0:01:48]}  cxd5 {[%clk 0:01:27]} 18. Nf5 {[%clk 0:01:48]}  Bxf5 {[%clk 0:01:17]} 19. Bxf5 {[%clk 0:01:49]}  Rad8 {[%clk 0:01:18]} 20. Rf3 {[%clk 0:01:37]}  c6 {[%clk 0:01:11]} 21. Kf1 {[%clk 0:01:31]}  a5 {[%clk 0:01:07]} 22. Rg3 {[%clk 0:01:28]}  Bd6 {[%clk 0:01:05]} 23. Rg4 {[%clk 0:01:27]}  Re3 {[%clk 0:00:56]} 24. Rh4 {[%clk 0:01:23]}  a4 {[%clk 0:00:23]} 25. Rd3 {[%clk 0:00:55]}  Rxd3 {[%clk 0:00:16]} 26. Bxd3 {[%clk 0:00:55]}  Ke7 {[%clk 0:00:16]} 27. g3 {[%clk 0:00:53]}  Rh8 {[%clk 0:00:14]} 28. Rh5 {[%clk 0:00:51]}  a3 {[%clk 0:00:13]} 29. b3 {[%clk 0:00:50]}  Bb4 {[%clk 0:00:13]} 30. Kg2 {[%clk 0:00:49]}  Bc3 {[%clk 0:00:13]} 31. Kf3 {[%clk 0:00:50]}  Kd6 {[%clk 0:00:13]} 32. Kg4 {[%clk 0:00:45]}  c5 {[%clk 0:00:13]} 33. Be2 {[%clk 0:00:41]}  Re8 {[%clk 0:00:13]} 34. Bf3 {[%clk 0:00:40]}  Re3 {[%clk 0:00:12]} 35. Rxd5+ {[%clk 0:00:39]}  Ke7 {[%clk 0:00:11]} 36. Rxc5 {[%clk 0:00:33]}  Bb2 {[%clk 0:00:09]} 37. h4 {[%clk 0:00:30]}  Kd6 {[%clk 0:00:09]} 38. Rh5 {[%clk 0:00:28]}  Ke6 {[%clk 0:00:08]} 39. Bd5+ {[%clk 0:00:21]}  Kd6 {[%clk 0:00:08]} 40. Bxf7 {[%clk 0:00:20]}  Bc3 {[%clk 0:00:08]} 41. Rxh6 {[%clk 0:00:17]}  Ke7 {[%clk 0:00:08]} 42. Bc4 {[%clk 0:00:17]}  Be1 {[%clk 0:00:08]} 43. Kf5 {[%clk 0:00:16]}  Bxg3 {[%clk 0:00:04]} 44. Rh7+ {[%clk 0:00:17]}  Kd6 {[%clk 0:00:05]} 45. h5 {[%clk 0:00:13]}  Rf3 {[%clk 0:00:05]} 46. Kg4 {[%clk 0:00:13]}  Rc3 {[%clk 0:00:05]} 47. h6 {[%clk 0:00:13]}  Be1 {[%clk 0:00:01]} 48. Ra7 {[%clk 0:00:12]}  Rxc2 {[%clk 0:00:01]} 49. Rxa3 {[%clk 0:00:11]}  Rh2 {[%clk 0:00:01]} 50. Ra6+ {[%clk 0:00:10]} 1-0


[Site "https://www.chess.com"]